fUSD/lending_fUSD_20251019
["ID","MTS","AMOUNT","RATE_DAILY","PERIOD"]
[391817051,1760873441671,-2131.55,0.00044999,120]
[391817052,1760873441680,-500.0,0.00044999,120]
[391817053,1760873441690,-500.0,0.00044999,120]
[391817054,1760873441700,-500.0,0.00044999,120]
[391817055,1760873441709,-500.0,0.00044999,120]
[391817056,1760873441719,-500.0,0.00044999,120]
[391817057,1760873441729,-500.0,0.00044999,120]
[391817058,1760873441739,-500.0,0.00044999,120]
[391817059,1760873441748,-500.0,0.00044999,120]
[391817060,1760873441757,-500.0,0.00044999,120]
[391817061,1760873441767,-500.0,0.00044999,120]
[391817062,1760873441777,-520.0,0.00044999,120]
[391817063,1760873441787,-151.0,0.00044999,120]
[391817064,1760873441798,-220.0,0.00044999,120]
[391817065,1760873441807,-1000.0,0.00044999,120]
[391817066,1760873441817,-250.0,0.00044999,120]
[391817067,1760873441826,-300.0,0.00044999,120]
[391817068,1760873441836,-539.24,0.00044999,120]
[391817069,1760873441846,-220.0,0.00044999,120]
[391817070,1760873441855,-1000.0,0.00044999,120]
[391817071,1760873441865,-311.1,0.00044999,120]
[391817072,1760873441874,-250.0,0.00044999,120]
[391817073,1760873441889,-357.28558722,0.00044999,120]
[391817074,1760873441898,-1000.0,0.00044999,120]
[391817075,1760873441908,-322.6107,0.00044999,120]
[391817076,1760873441918,-220.0,0.00044999,120]
[391817077,1760873441929,-250.0,0.00044999,120]
[391817078,1760873441939,-430.13463279,0.00044999,120]
[391817079,1760873441948,-840.59224686,0.00044999,120]
[391817080,1760873441960,-271.97501924,0.00044999,120]
[391817081,1760873441971,-220.0,0.00044999,120]
[391817082,1760873441980,-220.0,0.00044999,120]
[391817083,1760873441991,-220.0,0.00044999,120]
[391817084,1760873442000,-220.0,0.00044999,120]
[391817085,1760873442009,-500.0,0.00044999,120]
[391817086,1760873442019,-168.65185757,0.00044999,120]
[391817087,1760873442142,-500.0,0.00044999,120]
[391817088,1760873442166,-151.0,0.00044999,120]
[391817089,1760873442175,-151.0,0.00044999,120]
[391817090,1760873442187,-500.0,0.00044999,120]
[391817091,1760873442197,-151.0,0.00044999,120]
[391817092,1760873442207,-151.0,0.00044999,120]
[391817093,1760873442216,-500.0,0.00044999,120]
[391817094,1760873442226,-151.0,0.00044999,120]
[391817095,1760873442238,-500.0,0.00044999,120]
[391817096,1760873442248,-151.0,0.00044999,120]
[391817097,1760873442259,-500.0,0.00044999,120]
[391817098,1760873442268,-151.0,0.00044999,120]
[391817099,1760873442278,-500.0,0.00044999,120]
[391817100,1760873442288,-500.0,0.00044999,120]
[391817101,1760873442297,-707.31242024,0.00044999,120]
[391817102,1760873442307,-6888.0,0.00044999,120]
[391817103,1760873442316,-7142.856,0.00044999,120]
[391817104,1760873442325,-7407.141672,0.00044999,120]
[391817105,1760873442334,-151.0,0.00044999,120]
[391817106,1760873442343,-250.0,0.00044999,120]
[391817107,1760873442353,-7681.20591386,0.00044999,120]
[391817108,1760873442362,-151.0,0.00044999,120]
[391817109,1760873442372,-7965.41053268,0.00044999,120]
[391817110,1760873442382,-151.0,0.00044999,120]
[391817111,1760873442391,-151.0,0.00044999,120]
[391817112,1760873442400,-8260.13072239,0.00044999,120]
[391817113,1760873442410,-151.0,0.00044999,120]
[391817114,1760873442419,-1820.2931148,0.00044999,120]
[391817115,1760873442436,-6745.46244431,0.00044999,120]
[391817116,1760873442445,-151.0,0.00044999,120]
[391817117,1760873442455,-8882.6885148,0.00044999,120]
[391817118,1760873442464,-151.0,0.00044999,120]
[391817119,1760873442474,-3596.91948223,0.00044999,120]
[391817120,1760873442485,-1384.39075627,0.00044999,120]
[391817121,1760873442496,-558.51498012,0.00044999,120]
[391817122,1760873442507,-2040.79112015,0.00044999,120]
[391817124,1760873442519,-1630.73165108,0.00044999,120]
[391817126,1760873442529,-151.0,0.00044999,120]
[391817128,1760873442538,-4540.1884916,0.00044999,120]
[391817130,1760873442548,-5011.97937387,0.00044999,120]
[391817132,1760873442557,-151.0,0.00044999,120]
[391817134,1760873442567,-6619.83057564,0.00044999,120]
[391817136,1760873442576,-146.82156418,0.00044999,120]
[391817138,1760873442605,-254.85796806,0.000443,16]
[391817140,1760873442617,-245.14203194,0.000443,16]
[391817141,1760873442626,-199.83366786,0.0004494,2]
[391817142,1760873442635,-4.17843582,0.00044999,120]
[391817144,1760873442644,-151.0,0.00044999,120]
[391817145,1760873442654,-151.0,0.00044999,120]
[391817146,1760873442665,-151.0,0.00044999,120]
[391817147,1760873442675,-151.0,0.00044999,120]
[391817148,1760873442687,-30.39586438,0.00044999,120]
[391817149,1760873442700,-120.60413562,0.00044999,120]
[391817150,1760873442709,-151.0,0.00044999,120]
[391817151,1760873442718,-151.0,0.00044999,120]
[391817152,1760873442727,-151.0,0.00044999,120]
[391817153,1760873442736,-151.0,0.00044999,120]
[391817154,1760873442746,-151.0,0.00044999,120]
[391817155,1760873442755,-681.0,0.00045,7]
[391817156,1760873442764,-32223.39586438,0.00045,31]
[391817157,1760873442819,-15018.41764493,0.00045,31]
[391817158,1760873442832,-334.07433588,0.00045,31]
[391817159,1760873442843,-540.25,0.00045,31]
[391817160,1760873442854,-4096.25980356,0.00045,31]
[391817161,1760873442866,-5250.5,0.00045,31]
[391817162,1760873442881,-41165.91586294,0.00045,31]
[391817163,1760873442894,-955.99370367,0.00045,31]
[391817164,1760873442944,-300.71919648,0.000444,16]
[391817165,1760873442956,-499.28080352,0.000444,16]
[391817166,1760873442967,-164.49106856,0.00044983,2]
[391817167,1760873442978,-886.35599192,0.00045,31]
[391817168,1760873442990,-749371.342055,0.00045,31]
[391817169,1760873443002,-5423.3352,0.00045,31]
[391817170,1760873443019,-1000.0,0.000445,16]
[391817171,1760873443028,-53205.0,0.00045,31]
[391817172,1760873443039,-471.225,0.00045,31]
[391817173,1760873443050,-595.36836,0.00045,31]
[391817174,1760873443061,-30763.73830658,0.00045,31]
[391817175,1760873443071,-175370.51006493,0.00045,120]
[391817176,1760873443082,-260.38614934,0.00045,120]
[391817177,1760873443093,-448428.36081625,0.00045,120]
[391817178,1760873443102,-496.47,0.00045,2]
[391817179,1760873443111,-4396.1181865,0.00045,30]
[391817180,1760873443120,-26711.4039069,0.00045,2]
[391817181,1760873443129,-1000000.0,0.00045,120]
[391817182,1760873443138,-401.5766363,0.00045,2]
[391817183,1760873443148,-250.0,0.00045,7]
[391817184,1760873443157,-414303.9597927,0.00045,2]
[391817187,1760873443166,-10981.351019,0.00045,2]
[391817188,1760873443176,-318.25834893,0.00045,60]
[391817189,1760873443186,-884.98544164,0.00045,60]
[391817190,1760873443196,-150.0,0.00045013,14]
[391817191,1760873443205,-159.60825401,0.00045015,7]
[391817192,1760873443215,-300.0,0.00045024,30]
[391817193,1760873443224,-1958.17,0.00045024,120]
[391817194,1760873443234,-1958.17,0.00045024,120]
[391817195,1760873443243,-1958.17,0.00045024,120]
[391817196,1760873443253,-1958.17,0.00045024,120]
[391817197,1760873443263,-830.17,0.00045024,120]
[391817198,1760873443273,-830.17,0.00045024,120]
[391817199,1760873443283,-830.17,0.00045024,120]
[391817200,1760873443292,-830.17,0.00045024,120]
[391817201,1760873443302,-1792.72,0.00045024,30]
[391817202,1760873443311,-1792.72,0.00045024,30]
[391817203,1760873443320,-1792.72,0.00045024,30]
[391817204,1760873443330,-1792.72,0.00045024,30]
[391817205,1760873443339,-500.0,0.00045024,120]
[391817206,1760873443349,-500.0,0.00045024,120]
[391817207,1760873443358,-500.0,0.00045024,120]
[391817208,1760873443367,-617.66963933,0.00045024,120]
[391817209,1760873443378,-2131.55,0.00045024,120]
[391817210,1760873443387,-2131.55,0.00045024,120]
[391817211,1760873443397,-2131.55,0.00045024,120]
[391817212,1760873443407,-2131.55,0.00045024,120]
[391817213,1760873443416,-500.0,0.00045024,120]
[391817214,1760873443426,-500.0,0.00045024,120]
[391817215,1760873443435,-500.0,0.00045024,120]
[391817216,1760873443445,-500.0,0.00045024,120]
[391817217,1760873443455,-433889.79795844,0.00045025,120]
[391817218,1760873443467,-25000.0012,0.00045025,120]
[391817221,1760873445870,-153.0,0.00036998,2]
[391817222,1760873445881,-153.0,0.00036998,2]
[391817223,1760873445892,-153.0,0.00036998,2]
[391817224,1760873445903,-153.0,0.00036998,2]
[391817225,1760873445914,-1300.0,0.000446,16]
[391817226,1760873445925,-4847.75708031,0.00045025,120]
[391817227,1760873445939,-1750.0,0.00045025,120]
[391817228,1760873446030,-67269.27736621,0.00045025,120]
[391817229,1760873446085,-1220.0,0.00045025,120]
[391817230,1760873446096,-415935.57988664,0.00045025,120]
[391817231,1760873446144,-1603.32,0.00045025,120]
[391817232,1760873446156,-450.0,0.00045025,120]
[391817239,1760873533549,250.0,0.00017,2]
[391817243,1760873834839,1750.0,0.00021,2]
[391817244,1760873955790,-2250.0,0.00021,2]
[391817255,1760874139195,5000.0,0.0002,2]
[391817256,1760874175463,398.3922794,0.00016001,10]
[391817257,1760874175486,4601.6077206,0.00016001,10]
[391817258,1760874243118,1988.37489724,0.00023484,120]
[391817259,1760874246228,300.0,0.00023484,120]
[391817276,1760874544799,152.54469578,0.00023484,120]
[391817286,1760874631926,-153.13,0.00021349,2]
[391817287,1760874631935,-153.13,0.00024907,2]
[391817288,1760874631944,-153.13,0.00028466,2]
[391817289,1760874631953,-153.13,0.00032024,2]
[391817290,1760874631962,-233.59,0.00032032,2]
[391817291,1760874631972,-170.22,0.00033096,2]
[391817292,1760874631981,-1475.4059,0.00035576,30]
[391817293,1760874631993,-153.13,0.00035582,2]
[391817294,1760874632002,-881.6423926,0.00035676,30]
[391817295,1760874632011,-300.0,0.00035794,7]
[391817296,1760874632021,-358.51015508,0.0003804,3]
[391817297,1760874632032,-684.10250425,0.0003804,3]
[391817298,1760874632043,-557.38734067,0.0003804,3]
[391817299,1760874632053,-400.0,0.00038041,2]
[391817300,1760874632062,-400.0,0.00038041,3]
[391817301,1760874632071,-6436.0,0.00038043,2]
[391817302,1760874632081,-6071.835,0.00038043,2]
[391817303,1760874632090,-153.13,0.0003914,2]
[391817304,1760874632099,-8.86395411,0.0003949,30]
[391817305,1760874632111,-144.13604589,0.0003949,30]
[391817306,1760874632120,-400.20058822,0.00039947,14]
[391817307,1760874632131,-529.52,0.00039947,14]
[391817308,1760874632143,-4870.27941178,0.00039947,14]
[391817309,1760874632152,-5800.0,0.00039955,14]
[391817310,1760874632162,-150.0,0.00039963,4]
[391817311,1760874632171,-5800.0,0.00039964,14]
[391817312,1760874632182,-2061.054,0.00039964,56]
[391817313,1760874632192,-203.721,0.00039964,56]
[391817315,1760874632201,-5800.0,0.00039972,14]
[391817317,1760874632211,-5800.0,0.00039981,14]
[391817319,1760874632220,-5800.0,0.00039989,14]
[391817320,1760874632230,-166.66,0.00040155,30]
[391817321,1760874632239,-333.0,0.0004066,5]
[391817322,1760874632249,-200.0,0.0004066,5]
[391817324,1760874632259,-598.14929221,0.00040667,5]
[391817326,1760874632268,-500.0,0.000407,3]
[391817328,1760874632278,-800.0,0.00040813,5]
[391817331,1760874632288,-174.0,0.00041,90]
[391817332,1760874632298,-166.66,0.00041001,30]
[391817334,1760874632308,-1000.0,0.00041059,15]
[391817336,1760874632318,-168.0,0.00041089,2]
[391817338,1760874632327,-500.93610499,0.00041248,3]
[391817340,1760874632337,-1000.0,0.00041285,120]
[391817342,1760874632347,-243.53,0.00041309,2]
[391817344,1760874632360,-1000.0,0.00041367,120]
[391817346,1760874632370,-269.23320494,0.00041375,2]
[391817348,1760874632380,-196.22,0.00041475,2]
[391817350,1760874632389,-250.0,0.00041497,7]
[391817352,1760874632399,-439.1,0.00041512,2]
[391817354,1760874632409,-721.89,0.00041615,2]
[391817356,1760874632419,-168.0,0.00041633,2]
[391817359,1760874632429,-150.0,0.00041736,2]
[391817363,1760874632442,-166.66,0.00041846,30]
[391817366,1760874632452,-2617.46,0.00041881,2]
[391817369,1760874632462,-168.0,0.00042206,2]
[391817372,1760874632471,-168.0,0.00042576,2]
[391817375,1760874632480,-166.66,0.00042691,30]
[391817378,1760874632491,-153.13,0.00042698,2]
[391817380,1760874632501,-666.0,0.00042768,20]
[391817382,1760874632510,-164.0,0.00043,90]
[391817384,1760874632520,-196.22,0.0004303,2]
[391817386,1760874632529,-1595.06382342,0.00043033,7]
[391817388,1760874632542,-271.54991355,0.00043033,7]
[391817390,1760874632552,-394.45008645,0.00043105,31]
[391817392,1760874632564,-105.54991355,0.00043105,31]
[391817394,1760874632573,-500.0,0.00043105,31]
[391817396,1760874632583,-40.18318069,0.00043105,31]
[391817399,1760874632595,-459.81681931,0.00043105,31]
[391817401,1760874632604,-343.69318069,0.00043105,31]
[391817403,1760874632616,-156.30681931,0.00043105,31]
[391817405,1760874632626,-451.53553012,0.00043105,31]
[391817407,1760874632635,-20898.85,0.00043106,2]
[391817409,1760874632644,-210.68281042,0.00043113,2]
[391817411,1760874632655,-58.55039452,0.00043113,2]
[391817413,1760874632663,-569.13169042,0.00043133,120]
[391817477,1760874637936,-999.92,0.00043133,120]
[391817478,1760874637948,-3430.94830958,0.00043133,120]
[391817479,1760874637957,-1000.0,0.000433,2]
[391817480,1760874637967,-2751.0,0.00043359,120]
[391817481,1760874637976,-1000.0,0.000434,7]
[391817482,1760874637985,-168.0,0.00043419,2]
[391817483,1760874637998,-166.66,0.00043537,30]
[391817484,1760874638007,-1189.0,0.00043735,30]
[391817485,1760874638017,-6243.39169042,0.0004375,2]
[391817486,1760874638028,-5868.7590974,0.0004375,2]
[391817487,1760874638096,-443.14705468,0.0004375,2]
[391817488,1760874638112,-577.36270531,0.0004375,2]
[391817489,1760874638123,-1150.0,0.0004375,2]
[391817490,1760874638148,-3316.13927406,0.0004375,2]
[391817521,1760874639925,-1378.913203,0.0004375,2]
[391817522,1760874639979,-665.619431,0.0004375,2]
[391817523,1760874640034,-614.89542121,0.0004375,2]
[391817524,1760874640045,-822.10000006,0.0004375,2]
[391817525,1760874640057,-3102.7500236,0.0004375,2]
[391817526,1760874640068,-2872.96862357,0.0004375,2]
[391817527,1760874640078,-168.0,0.00043826,2]
[391817528,1760874640087,-1000.0,0.00044,7]
[391817529,1760874640096,-168.0,0.00044036,2]
[391817530,1760874640105,-1189.0,0.00044186,30]
[391817531,1760874640114,-68.78137652,0.00044382,30]
[391817532,1760874640125,-97.87862348,0.00044382,30]
[391817533,1760874640135,-196.22,0.00044586,2]
[391817534,1760874640144,-686.76075685,0.0004462,2]
[391817535,1760874640153,-1189.0,0.00044637,30]
[391817536,1760874640163,-1053.8687,0.00044777,2]
[391817537,1760874640171,-589.97191967,0.00044777,2]
[391817538,1760874640184,-2691.86098033,0.00044777,2]
[391817539,1760874640193,-200.0,0.0004479,120]
[391817540,1760874640202,-1866.61373696,0.00044799,7]
[391817541,1760874640212,-160.87730938,0.00044799,15]
[391817542,1760874640221,-160.87730932,0.00044831,15]
[391817543,1760874640230,-904.5502,0.0004485,25]
[391817544,1760874640239,-269.23320494,0.0004485,2]
[391817545,1760874640248,-160.87730932,0.00044862,15]
[391817546,1760874640258,-164.0,0.00044877,90]
[391817547,1760874640267,-160.87730932,0.00044894,15]
[391817548,1760874640277,-211.13587971,0.00044899,30]
[391817549,1760874640286,-1252.99734224,0.0004492,17]
[391817550,1760874640295,-5000.0,0.0004492,120]
[391817551,1760874640304,-160.87730932,0.00044925,15]
[391817552,1760874640315,-150.0,0.00044946,2]
[391817553,1760874640324,-661.6001677,0.00044949,17]
[391817554,1760874640333,-834.31825206,0.0004495,120]
[391817555,1760874640343,-11849.96044463,0.0004495,60]
[391817584,1760874643030,-570.14988775,0.00044949,120]
[391817587,1760874643085,-116.17011225,0.00044949,120]
[391817588,1760874643097,-235.74164235,0.0004495,60]
[391817589,1760874643109,-43469.29791302,0.0004495,60]
[391817590,1760874643119,-326.65921066,0.00044955,2]
[391817591,1760874643129,-2569.14548308,0.00044955,2]
[391817592,1760874643139,-198.20486462,0.00044956,2]
[391817593,1760874643148,-194.90640132,0.00044956,2]
[391817594,1760874643157,-2035.91277408,0.00044956,2]
[391817595,1760874643167,-160.87730932,0.00044957,15]
[391817596,1760874643176,-5727.0042079,0.00044986,2]
[391817597,1760874643186,-160.87730932,0.00044988,15]
[391817598,1760874643195,-2295.0,0.00044989,7]
[391817599,1760874643204,-150.0,0.0004499,120]
[391817600,1760874643213,-150.0,0.0004499,120]
[391817601,1760874643223,-300.0,0.0004499,120]
[391817602,1760874643236,-150.0,0.0004499,120]
[391817603,1760874643245,-420.0,0.0004499,120]
[391817604,1760874643255,-4251.91295744,0.0004499,3]
[391817605,1760874643265,-1062.97823936,0.00044991,3]
[391817606,1760874643274,-827.06,0.00044999,7]
[391817607,1760874643284,-150.0,0.00044999,120]
[391817608,1760874643293,-500.0,0.00044999,120]
[391817609,1760874643303,-500.0,0.00044999,2]
[391817610,1760874643312,-500.0,0.00044999,120]
[391817611,1760874643323,-500.0,0.00044999,120]
[391817612,1760874643332,-338.27612421,0.00044999,5]
[391817613,1760874643341,-500.30752045,0.00044999,5]
[391817614,1760874643358,-522.88,0.00044999,30]
[391817615,1760874643372,-621.71,0.00044999,120]
[391817616,1760874643381,-335.41,0.00044999,120]
[391817617,1760874643391,-3046.0,0.00045,100]
[391817618,1760874643400,-34591.11,0.00045,120]
[391817619,1760874643411,-5000.0,0.00045,120]
[391817620,1760874643420,-4110.25325338,0.00045,120]
[391817621,1760874643430,-15000.0,0.00045,120]
[391817622,1760874643441,-1062.97823936,0.00045,3]
[391817623,1760874643450,-150.0,0.00045001,2]
[391817624,1760874643459,-2125.95647872,0.00045005,3]
[391817625,1760874643469,-1062.97823936,0.0004501,3]
[391817626,1760874643478,-12755.7388723,0.0004501,3]
[391817627,1760874643489,-500.0,0.0004502,120]
[391817628,1760874643499,-500.0,0.0004502,120]
[391817629,1760874643509,-522.88,0.0004502,30]
[391817630,1760874643518,-621.71,0.0004502,120]
[391817631,1760874643527,-200.0,0.00045023,30]
[391817632,1760874643537,-207.4,0.00045023,30]
[391817633,1760874643546,-215.0738,0.00045023,30]
[391817634,1760874643555,-223.0315306,0.00045023,30]
[391817635,1760874643564,-231.28369723,0.00045023,30]
[391817636,1760874643574,-239.84119403,0.00045023,30]
[391817637,1760874643583,-368.78077896,0.00045023,30]
[391817638,1760874643593,-200.0,0.00045024,120]
[391817639,1760874643603,-200.0,0.00045024,120]
[391817640,1760874643612,-200.0,0.00045024,120]
[391817641,1760874643622,-151.0,0.00045024,120]
[391817642,1760874643631,-151.0,0.00045024,120]
[391817643,1760874643640,-151.0,0.00045024,120]
[391817644,1760874643650,-151.0,0.00045024,120]
[391817645,1760874643659,-151.0,0.00045024,120]
[391817646,1760874643668,-300.0,0.00045024,120]
[391817647,1760874643677,-151.0,0.00045024,120]
[391817648,1760874643686,-311.1,0.00045024,120]
[391817649,1760874643695,-151.0,0.00045024,120]
[391817650,1760874643705,-322.6107,0.00045024,120]
[391817651,1760874643715,-151.0,0.00045024,120]
[391817652,1760874643724,-334.5472959,0.00045024,120]
[391817653,1760874643733,-151.0,0.00045024,120]
[391817654,1760874643743,-262.92458429,0.00045024,120]
[391817655,1760874643752,-151.0,0.00045024,120]
[391817656,1760874643761,-151.0,0.00045024,120]
[391817657,1760874643770,-151.0,0.00045024,120]
[391817658,1760874643779,-151.0,0.00045024,120]
[391817659,1760874643788,-156.21784043,0.00045024,120]
[391817660,1760874643797,-48034.2665084,0.00045025,120]
[391817661,1760874643807,-904.5502,0.00045025,26]
[391817662,1760874643816,-500.0,0.00045029,120]
[391817663,1760874643825,-469.12601148,0.00045029,120]
[391817664,1760874643835,-500.0,0.00045029,2]
[391817665,1760874643844,-500.0,0.00045029,2]
[391817666,1760874643854,-500.0,0.00045029,120]
[391817667,1760874643864,-500.0,0.00045029,120]
[391817668,1760874643873,-500.0,0.00045029,120]
[391817669,1760874643882,-500.0,0.00045029,120]
[391817670,1760874643892,-522.88,0.00045029,30]
[391817671,1760874643902,-522.88,0.00045029,30]
[391817672,1760874643911,-621.71,0.00045029,120]
[391817673,1760874643922,-621.71,0.00045029,120]
[391817674,1760874643932,-57475.04590213,0.0004503,30]
[391817675,1760874643941,-271623.99455768,0.0004503,21]
[391817676,1760874643972,-2980.97960218,0.0004503,21]
[391817697,1760874645994,-186.89320929,0.00043726,2]
[391817698,1760874646006,-686.32,0.0004502,120]
[391817699,1760874646015,-686.32,0.00045029,120]
[391817700,1760874646026,-686.32,0.00045029,120]
[391817701,1760874646035,-12241.64356066,0.0004503,21]
[391817702,1760874646047,-16853.4908707,0.0004503,21]
[391817703,1760874646057,-21780.5,0.0004503,21]
[391817704,1760874646068,-616.91850101,0.0004503,21]
[391817705,1760874646079,-491.86396871,0.0004503,21]
[391817706,1760874646102,-2964.83239378,0.0004503,21]
[391817707,1760874646113,-217.2024967,0.0004504,7]
[391817708,1760874646123,-151.29,0.0004504,2]
[391817709,1760874646133,-151.29,0.0004504,2]
[391817710,1760874646142,-686.32,0.00045048,120]
[391817711,1760874646151,-77.07252637,0.00045049,30]
[391817712,1760874646258,-238.37606548,0.00045049,30]
[391817713,1760874646268,-666.0,0.00045049,30]
[391817714,1760874646278,-500.0,0.00045049,2]
[391817715,1760874646289,-500.0,0.00045049,2]
[391817716,1760874646300,-500.0,0.00045049,2]
[391817717,1760874646310,-500.0,0.00045049,2]
[391817718,1760874646320,-500.0,0.00045049,2]
[391817719,1760874646329,-500.0,0.00045049,2]
[391817720,1760874646338,-414.5747899,0.00045049,2]
[391817721,1760874646348,-150.0,0.00045049,120]
[391817722,1760874646360,-11.25371647,0.00045049,120]
[391817723,1760874646372,-488.74628353,0.00045049,120]
[391817724,1760874646382,-500.0,0.00045049,120]
[391817725,1760874646391,-500.0,0.00045049,120]
[391817726,1760874646402,-500.0,0.00045049,120]
[391817727,1760874646412,-500.0,0.00045049,120]
[391817728,1760874646422,-327.48291875,0.00045049,120]
[391817729,1760874646432,-500.0,0.00045049,120]
[391817730,1760874646443,-500.0,0.00045049,120]
[391817731,1760874646453,-330.20857002,0.00045049,120]
[391817732,1760874646464,-169.79142998,0.00045049,120]
[391817733,1760874646474,-500.0,0.00045049,120]
[391817734,1760874646483,-500.0,0.00045049,120]
[391817735,1760874646492,-500.0,0.00045049,120]
[391817736,1760874646502,-500.0,0.00045049,120]
[391817737,1760874646511,-311.35380963,0.00045049,120]
[391817738,1760874646520,-522.88,0.00045049,30]
[391817739,1760874646530,-522.88,0.00045049,30]
[391817740,1760874646539,-522.88,0.00045049,30]
[391817741,1760874646548,-522.88,0.00045049,30]
[391817742,1760874646558,-522.88,0.00045049,30]
[391817743,1760874646568,-522.88,0.00045049,30]
[391817744,1760874646579,-522.88,0.00045049,30]
[391817745,1760874646588,-522.88,0.00045049,30]
[391817746,1760874646597,-522.88,0.00045049,30]
[391817747,1760874646607,-522.88,0.00045049,30]
[391817748,1760874646620,-522.88,0.00045049,30]
[391817749,1760874646629,-522.88,0.00045049,30]
[391817750,1760874646638,-522.88,0.00045049,30]
[391817752,1760874646647,-621.71,0.00045049,120]
[391817753,1760874646657,-621.71,0.00045049,120]
[391817754,1760874646667,-621.71,0.00045049,120]
[391817755,1760874646677,-621.71,0.00045049,120]
[391817756,1760874646688,-621.71,0.00045049,120]
[391817757,1760874646697,-621.71,0.00045049,120]
[391817758,1760874646706,-621.71,0.00045049,120]
[391817759,1760874646716,-621.71,0.00045049,120]
[391817760,1760874646724,-272.48220999,0.00045049,120]
[391817761,1760874646736,-349.22779001,0.00045049,120]
[391817762,1760874646745,-146.70220969,0.00045049,120]
[391817763,1760874646763,-475.00779031,0.00045049,120]
[391817764,1760874646772,-621.71,0.00045049,120]
[391817765,1760874646782,-621.71,0.00045049,120]
[391817766,1760874646791,-621.71,0.00045049,120]
[391817767,1760874646800,-217.76839378,0.00045049,120]
[391817771,1760874810464,245.7,0.00013699,2]
[391817772,1760874816958,-179.50218907,0.00020187,2]
[391817774,1760875558043,1285.14187945,0.00034086,30]
[391817780,1760875832104,-150.0,0.00020187,2]
[391817781,1760875832114,-66.19781093,0.00020187,2]
[391817782,1760875832127,-245.7,0.00026676,2]
[391817783,1760875832136,-245.7,0.00033165,2]
[391817784,1760875832146,-400.0,0.0003959,5]
[391817785,1760875832156,-150.0,0.0003959,4]
[391817786,1760875832165,-7165.18589429,0.0003959,2]
[391817787,1760875832245,-419.86360716,0.0003959,2]
[391817788,1760875832255,-300.0,0.0003959,5]
[391817789,1760875832265,-1200.0,0.0003959,5]
[391817790,1760875832275,-153.0,0.00039591,30]
[391817791,1760875832284,-153.0,0.00039591,30]
[391817792,1760875832294,-153.0,0.00039591,30]
[391817793,1760875832303,-153.0,0.00039591,30]
[391817794,1760875832313,-153.0,0.00039591,30]
[391817795,1760875832323,-153.0,0.00039591,30]
[391817796,1760875832332,-153.0,0.00039591,30]
[391817797,1760875832342,-153.0,0.00039591,30]
[391817798,1760875832351,-153.0,0.00039591,30]
[391817799,1760875832361,-153.0,0.00039591,30]
[391817800,1760875832373,-153.0,0.00039591,30]
[391817801,1760875832382,-153.0,0.00039591,30]
[391817802,1760875832391,-153.0,0.00039591,30]
[391817803,1760875832401,-153.0,0.00039591,30]
[391817804,1760875832414,-153.0,0.00039591,30]
[391817805,1760875832424,-153.0,0.00039591,30]
[391817806,1760875832433,-153.0,0.00039591,30]
[391817808,1760875832442,-153.0,0.00039591,30]
[391817810,1760875832451,-153.0,0.00039591,30]
[391817812,1760875832460,-153.0,0.00039591,30]
[391817814,1760875832469,-153.0,0.00039591,30]
[391817816,1760875832478,-153.0,0.00039591,30]
[391817818,1760875832487,-153.0,0.00039591,30]
[391817820,1760875832497,-153.0,0.00039591,30]
[391817821,1760875832507,-153.0,0.00039591,30]